bitfinex/quotes_SOLUSD_20260310
["timestamp","ask_amount","ask_price","bid_price","bid_amount"]
[1773152016431,11.27759355,85.41,85.384,40.99128642]
[1773152016833,11.27759355,85.41,85.385,2.5889625]
[1773152017343,11.27759355,85.42,85.385,2.5889625]
[1773152017524,11.27759355,85.42,85.387,2.5889625]
[1773152018246,11.27759355,85.43,85.391,2.5889625]
[1773152018822,11.27759355,85.42,85.391,2.5889625]
[1773152019025,2.57685963,85.422,85.386,11.71152179]
[1773152019221,11.27759355,85.41,85.386,11.71152179]
[1773152019441,11.27759355,85.41,85.384,29.27915996]
[1773152019634,11.27759355,85.41,85.381,2.5889625]
[1773152019635,11.27759355,85.41,85.382,11.71207045]
[1773152019841,2.57685963,85.422,85.383,2.5889625]
[1773152019842,11.27759355,85.42,85.383,2.5889625]
[1773152020237,11.27759355,85.41,85.383,2.5889625]
[1773152020554,11.27759355,85.42,85.383,2.5889625]
[1773152021226,11.27759355,85.41,85.383,2.5889625]
[1773152021626,11.27759355,85.41,85.38,29.280745]
[1773152021627,11.27759355,85.42,85.385,2.5889625]
[1773152022836,11.70585213,85.428,85.385,2.5889625]
[1773152022837,11.27759355,85.41,85.385,2.5889625]
[1773152023554,11.27759355,85.42,85.386,40.99032627]
[1773152023749,11.27759355,85.42,85.387,2.5889625]
[1773152024651,11.70576391,85.428,85.387,2.5889625]
[1773152024955,11.27759355,85.42,85.387,2.5889625]
[1773152025560,11.27759355,85.4,85.34,2.76853619]
[1773152025749,11.27759355,85.38,85.342,2.76853619]
[1773152026137,46.81973091,85.435,85.351,2.76853619]
[1773152026138,11.27759355,85.39,85.351,2.76853619]
[1773152026338,11.27759355,85.38,85.351,2.76853619]
[1773152026544,11.27759355,85.37,85.342,2.76853619]
[1773152027053,11.27759355,85.36,85.342,2.76853619]
[1773152027358,11.27759355,85.35,85.341,11.71769723]
[1773152027737,11.27759355,85.36,85.334,2.76853619]
[1773152027936,11.27759355,85.36,85.333,41.01578521]
[1773152027937,11.70795672,85.412,85.346,2.76853619]
[1773152028257,11.27759355,85.37,85.346,2.76853619]
[1773152029042,11.27759355,85.38,85.341,2.76853619]
[1773152029243,11.27759355,85.37,85.341,2.76853619]
[1773152029558,0.03398641,85.402,85.341,2.76853619]
[1773152029856,11.27759355,85.38,85.335,2.76853619]
[1773152030061,11.27759355,85.38,85.341,2.76853619]
[1773152030249,11.27759355,85.37,85.341,2.76853619]
[1773152030644,11.27759355,85.36,85.341,2.76853619]
[1773152030845,11.27759355,85.36,85.334,11.71865844]
[1773152031043,11.27759355,85.35,85.334,11.71865844]
[1773152032461,11.27759355,85.36,85.335,2.76853619]
[1773152032764,29.36024051,85.388,85.335,2.76853619]
[1773152032969,11.27759355,85.37,85.335,2.76853619]
[1773152033766,11.29988057,85.37,85.335,2.76853619]
[1773152033950,0.08197959,85.389,85.335,2.76853619]
[1773152034276,11.29988057,85.37,85.343,2.76853619]
[1773152034852,11.29988057,85.37,85.342,41.01145976]
[1773152034853,0.10492,85.4,85.344,2.76853619]
[1773152035080,11.29988057,85.38,85.344,2.76853619]
[1773152035568,11.29988057,85.37,85.344,2.76853619]
[1773152035870,0.10252434,85.393,85.344,2.76853619]
[1773152035871,11.29988057,85.38,85.344,2.76853619]
[1773152036249,11.29988057,85.38,85.34,11.29988057]
[1773152036250,11.29988057,85.38,85.346,2.76853619]
[1773152036771,11.29988057,85.39,85.361,2.76853619]
[1773152036959,11.29988057,85.38,85.345,41.01001815]
[1773152037155,2.63179373,85.387,85.35,11.29988057]
[1773152037460,11.29988057,85.39,85.35,11.29988057]
[1773152037847,11.29988057,85.39,85.345,41.01001815]
[1773152037848,11.29988057,85.38,85.345,41.01001815]
[1773152038355,11.29988057,85.38,85.345,29.29287011]
[1773152038970,11.29988057,85.38,85.346,2.6861117]
[1773152039868,11.29988057,85.38,85.35,11.29988057]
[1773152040173,13.9316743,85.39,85.351,2.6861117]
[1773152040372,11.29988057,85.39,85.353,2.6861117]
[1773152040668,11.29988057,85.42,85.381,2.6861117]
[1773152040856,2.63179373,85.432,85.382,2.6861117]
[1773152041056,11.29988057,85.41,85.382,2.6861117]
[1773152041765,11.29988057,85.41,85.371,2.6861117]
[1773152041945,11.29988057,85.41,85.352,240.1818352]
[1773152041946,11.29988057,85.38,85.36,2.6861117]
[1773152042149,11.29988057,85.38,85.352,11.71618708]
[1773152042667,11.29988057,85.38,85.353,2.6861117]
[1773152044666,11.29988057,85.38,85.354,41.00569393]
[1773152044867,11.29988057,85.38,85.354,11.71591255]
[1773152045067,11.29988057,85.38,85.355,2.62624569]
[1773152045777,11.29988057,85.38,85.354,11.71591255]
[1773152045778,11.29988057,85.37,85.354,11.71591255]
[1773152045976,11.29988057,85.37,85.348,11.71665881]
[1773152046653,2.55402967,85.377,85.348,11.71665881]
[1773152046851,11.29988057,85.37,85.348,11.71665881]
[1773152047967,2.55402967,85.377,85.348,11.71665881]
[1773152048257,11.29988057,85.36,85.336,11.7183838]
[1773152049480,11.29988057,85.36,85.32,11.29988057]
[1773152049481,1.65444628,85.349,85.291,2.62624569]
[1773152049659,11.29988057,85.32,85.293,2.82736346]
[1773152049858,11.29988057,85.31,85.293,2.82736346]
[1773152050059,2.55402967,85.299,85.25,11.29988057]
[1773152050275,11.29988057,85.32,85.223,46.93537123]
[1773152050276,2.55402967,85.289,85.223,46.93537123]
[1773152050577,11.29988057,85.32,85.194,46.95125342]
[1773152050578,11.29988057,85.26,85.201,146.71189304]
[1773152050772,11.29988057,85.26,85.23,11.29988057]
[1773152050982,13.85391024,85.27,85.23,11.29988057]
[1773152051183,11.29988057,85.26,85.22,11.29988057]
[1773152051359,11.29988057,85.32,85.204,3.69383402]
[1773152051360,2.55402967,85.319,85.204,3.69383402]
[1773152051682,2.55402967,85.319,85.201,287.55531035]
[1773152051683,11.29988057,85.28,85.24,11.29988057]
[1773152052057,11.29988057,85.28,85.241,2.62624569]
[1773152053369,11.29988057,85.27,85.242,43.68581725]
[1773152053565,11.29988057,85.28,85.243,2.62624569]
[1773152053770,11.29988057,85.27,85.243,2.62624569]
[1773152054078,11.29988057,85.28,85.243,2.62624569]
[1773152054283,11.29988057,85.29,85.251,2.62624569]
[1773152054455,11.29988057,85.29,85.242,99.71610237]
[1773152054456,11.29988057,85.31,85.271,2.62624569]
[1773152054857,11.29988057,85.3,85.271,2.62624569]
[1773152055074,11.29988057,85.31,85.271,2.62624569]
[1773152055673,11.29988057,85.31,85.273,2.62624569]
[1773152055886,11.29988057,85.29,85.272,11.7271789]
[1773152056086,2.55402967,85.309,85.273,2.62624569]
[1773152056262,11.29988057,85.31,85.273,2.62624569]
[1773152056590,2.55402967,85.32,85.281,2.62624569]
[1773152056591,11.29988057,85.32,85.281,2.62624569]
[1773152056785,11.29988057,85.31,85.281,2.62624569]
[1773152057162,11.7203307,85.322,85.272,11.7271789]
[1773152057163,11.29988057,85.3,85.272,11.7271789]
[1773152057679,11.29988057,85.3,85.272,29.31794727]
[1773152058183,2.55402967,85.309,85.273,2.62624569]
[1773152058379,11.29988057,85.31,85.273,2.62624569]
[1773152058584,11.29988057,85.32,85.29,11.29988057]
[1773152058783,11.29988057,85.31,85.281,2.62624569]
[1773152059084,2.55402967,85.309,85.272,29.31794727]
[1773152059268,2.55402967,85.299,85.272,29.31794727]
[1773152060193,2.55402967,85.299,85.245,46.92351241]
[1773152060194,2.55402967,85.289,85.247,2.62624569]
[1773152060490,2.55402967,85.289,85.26,11.29988057]
[1773152060687,2.55402967,85.289,85.251,2.62624569]
[1773152061263,2.55402967,85.289,85.26,11.29988057]
[1773152061478,13.85391024,85.31,85.27,13.92612626]
[1773152061783,13.85391024,85.31,85.271,11.72731643]
[1773152061784,11.72223003,85.308,85.271,11.72731643]
[1773152062089,4.82477569,85.365,85.281,2.62624569]
[1773152062090,14.27490522,85.318,85.281,2.62624569]
[1773152062305,2.55402967,85.317,85.281,2.62624569]
[1773152062587,2.55402967,85.309,85.271,41.04560752]
[1773152062770,2.55402967,85.319,85.29,11.29988057]
[1773152062975,2.55402967,85.319,85.281,2.62624569]
[1773152062976,11.29988057,85.31,85.281,2.62624569]
[1773152063393,2.55402967,85.318,85.281,2.62624569]
[1773152063787,2.55402967,85.309,85.281,11.72594129]
[1773152065393,2.55402967,85.309,85.272,11.7271789]
[1773152065588,2.55402967,85.309,85.28,11.29988057]
[1773152066901,2.55402967,85.309,85.281,11.72594129]
[1773152067074,2.55402967,85.307,85.275,11.72665083]
[1773152068092,46.8689287,85.345,85.29,11.29988057]
[1773152068093,2.55402967,85.345,85.29,11.29988057]
[1773152068396,2.55402967,85.329,85.289,2.62624569]
[1773152068581,11.29988057,85.32,85.289,2.62624569]
[1773152068897,11.29988057,85.31,85.279,41.04175705]
[1773152069079,2.55402967,85.309,85.279,41.04175705]
[1773152069389,2.55402967,85.309,85.279,11.7262163]
[1773152069688,2.55402967,85.309,85.228,46.9327282]
[1773152069689,2.55402967,85.299,85.256,2.62624569]
[1773152069891,13.85391024,85.29,85.26,11.72882946]
[1773152070070,13.85391024,85.29,85.26,23.02871003]
[1773152070269,2.55402967,85.29,85.26,23.02871003]
[1773152070680,2.55402967,85.303,85.261,2.62624569]
[1773152071002,11.29988057,85.3,85.262,41.04994017]
[1773152071175,13.85391024,85.3,85.263,2.62624569]
[1773152071495,13.85391024,85.3,85.262,11.72855433]
[1773152071496,11.29988057,85.31,85.28,13.92612626]
[1773152071686,2.55402967,85.318,85.281,2.62624569]
[1773152071992,52.76,85.37,85.291,2.62624569]
[1773152071993,11.29988057,85.33,85.291,2.62624569]
[1773152072169,2.55402967,85.329,85.291,2.62624569]
[1773152072374,41.00281161,85.36,85.281,2.62624569]
[1773152072375,2.55402967,85.32,85.281,2.62624569]
[1773152072592,2.55402967,85.319,85.281,2.62624569]
[1773152072992,2.55402967,85.334,85.3,11.29988057]
[1773152073292,2.55402967,85.334,85.301,2.62624569]
[1773152073499,2.55402967,85.329,85.292,41.03550157]
[1773152074200,2.55402967,85.329,85.292,11.72442902]
[1773152075285,58.57847169,85.356,85.292,11.72442902]
[1773152075286,2.57410523,85.327,85.3,11.29988057]
[1773152075495,2.57410523,85.327,85.293,2.80431752]
[1773152077380,58.58084252,85.353,85.284,2.80431752]
[1773152077381,2.57410523,85.319,85.284,2.80431752]
[1773152077693,2.57410523,85.319,85.29,11.29988057]
[1773152078589,23.0191555,85.33,85.291,2.80431752]
[1773152078795,2.57410523,85.333,85.291,2.80431752]
[1773152078989,2.57410523,85.329,85.291,2.80431752]
[1773152080998,11.29988057,85.34,85.311,2.80431752]
[1773152081202,3.69383402,85.379,85.292,43.83981909]
[1773152081203,2.57410523,85.329,85.292,43.83981909]
[1773152081402,2.57410523,85.329,85.293,2.80431752]
[1773152083293,2.57410523,85.329,85.294,41.03453935]
[1773152084210,2.57410523,85.329,85.295,2.80431752]
[1773152085206,2.57410523,85.329,85.294,41.03453935]
[1773152085207,2.57410523,85.327,85.294,11.7241541]
[1773152086509,2.57410523,85.327,85.295,2.56346704]
[1773152087410,2.73511221,85.325,85.295,2.56346704]
[1773152088504,2.73511221,85.325,85.296,11.72387919]
[1773152089012,2.73511221,85.329,85.296,11.72387919]
[1773152089316,2.73511221,85.329,85.171,19.48014335]
[1773152089317,2.73511221,85.309,85.258,2.56346704]
[1773152089489,87.89096831,85.333,85.223,46.93533239]
[1773152089490,2.73511221,85.299,85.265,2.56346704]
[1773152089819,2.73511221,85.299,85.271,2.56346704]
[1773152090812,2.73511221,85.299,85.272,11.7271789]
[1773152091022,2.73511221,85.299,85.272,14.29064594]
[1773152091226,11.72317773,85.302,85.273,2.56346704]
[1773152091400,2.73511221,85.316,85.281,2.56346704]
[1773152091896,11.29988057,85.31,85.281,2.56346704]
[1773152092908,2.73511221,85.308,85.272,29.31794727]
[1773152093111,2.73511221,85.308,85.273,11.72704138]
[1773152093314,2.73511221,85.308,85.274,2.56346704]
[1773152093708,2.73511221,85.308,85.219,46.93779999]
[1773152093709,11.29988057,85.29,85.265,2.56346704]
[1773152093922,11.29988057,85.29,85.205,46.94513229]
[1773152093923,2.73511221,85.279,85.247,2.56346704]
[1773152094208,2.73511221,85.27,85.242,2.56346704]
[1773152094411,2.73511221,85.279,85.242,2.56346704]
[1773152095103,11.7263538,85.278,85.243,14.29463558]
[1773152095301,11.7263538,85.278,85.244,2.56346704]
[1773152096922,11.32523003,85.27,85.244,2.56346704]
[1773152097613,11.72709798,85.273,85.245,11.7308933]
[1773152097994,11.32523003,85.27,85.245,11.7308933]
[1773152098399,11.32523003,85.27,85.234,29.33094216]
[1773152098400,2.73511221,85.269,85.235,2.56346704]
[1773152098994,11.32523003,85.26,85.23,11.32523003]
[1773152099190,2.73511221,85.26,85.232,2.56346704]
[1773152099394,2.73511221,85.269,85.232,2.56346704]
[1773152099607,11.72772904,85.268,85.234,2.56346704]
[1773152100501,11.72772904,85.268,85.201,14.30041848]
[1773152100502,2.73511221,85.239,85.201,14.30041848]
[1773152100698,14.06034224,85.22,85.2,0.1]
[1773152101006,11.32523003,85.24,85.202,2.56346704]
[1773152101209,11.32523003,85.24,85.211,2.56346704]
[1773152101397,11.32523003,85.25,85.221,2.56346704]
[1773152101707,11.32523003,85.25,85.223,2.56346704]
[1773152102108,2.73511221,85.249,85.21,11.32523003]
[1773152102305,2.73511221,85.229,85.2,0.1]
[1773152102506,99.69388112,85.261,85.2,0.1]
[1773152102507,11.32523003,85.25,85.211,2.56346704]
[1773152102909,11.32523003,85.25,85.201,41.07933005]
[1773152102910,2.73511221,85.259,85.221,2.56346704]
[1773152103214,2.73511221,85.249,85.211,2.56346704]
[1773152103413,4.82477569,85.295,85.201,41.07933005]
[1773152103414,11.32523003,85.28,85.241,2.56346704]
[1773152103616,11.32523003,85.28,85.24,11.32523003]
[1773152103617,11.32523003,85.28,85.253,2.77765333]
[1773152103824,1.65652516,85.281,85.201,93.89561154]
[1773152104121,11.32523003,85.22,85.201,11.73695144]
[1773152104429,11.32523003,85.26,85.2,0.1]
[1773152104430,11.32523003,85.21,85.2,0.1]
[1773152104635,11.32523003,85.22,85.2,0.1]
[1773152104920,11.32523003,85.26,85.2,11.83703684]
[1773152104921,1.65696916,85.241,85.2,11.83703684]
[1773152105133,287.28221169,85.282,85.2,11.83703684]
[1773152105134,11.32523003,85.25,85.211,2.77765333]
[1773152105309,11.32523003,85.24,85.211,2.77765333]
[1773152105511,46.89796779,85.292,85.2,41.17975984]
[1773152105512,1.7287536,85.304,85.23,11.32523003]
[1773152105826,1.7287536,85.304,85.201,2.77765333]
[1773152105827,11.72307031,85.302,85.271,2.77765333]
[1773152106002,11.72307031,85.302,85.231,181.85871336]
[1773152106003,11.32523003,85.29,85.261,2.77765333]
[1773152106408,13.45249534,85.297,85.261,2.77765333]
[1773152106711,46.86337466,85.355,85.271,2.77765333]
[1773152106712,1.72658414,85.308,85.271,2.77765333]
[1773152106915,11.32523003,85.33,85.291,2.77765333]
[1773152107223,29.2902056,85.353,85.271,2.77765333]
[1773152107224,11.32523003,85.3,85.271,2.77765333]
[1773152107602,11.32523003,85.3,85.262,2.77765333]
[1773152107821,13.45918225,85.299,85.263,2.77765333]
[1773152108327,11.72346686,85.299,85.263,2.77765333]
[1773152108506,11.32523003,85.29,85.261,11.72869189]
[1773152108702,1.74438235,85.298,85.261,11.72869189]
[1773152108923,11.32523003,85.28,85.239,2.77765333]
[1773152109108,2.64747063,85.298,85.241,2.77765333]
[1773152109303,11.32523003,85.28,85.241,2.77765333]
[1773152109509,2.64747063,85.259,85.222,2.77765333]
[1773152109733,11.32523003,85.25,85.223,11.73392159]
[1773152109904,14.37650225,85.259,85.223,11.73392159]
[1773152110110,2.64747063,85.258,85.223,11.73392159]
[1773152110316,11.72903162,85.259,85.2,0.1]
[1773152110317,11.32523003,85.23,85.201,11.73695144]
[1773152110622,11.32523003,85.25,85.21,11.32523003]
[1773152110923,2.64747063,85.269,85.231,2.77765333]
[1773152111217,11.72346686,85.299,85.261,2.77765333]
[1773152111218,2.64747063,85.298,85.261,2.77765333]
[1773152111522,11.32523003,85.29,85.261,2.77765333]
[1773152111706,11.32523003,85.29,85.25,14.10288336]
[1773152111915,11.32523003,85.29,85.26,11.32523003]
[1773152112235,9.5797493,85.318,85.241,2.77765333]
[1773152112236,11.32523003,85.27,85.241,2.77765333]
[1773152112402,11.32523003,85.27,85.201,46.94780577]
[1773152112403,11.32523003,85.26,85.23,11.32523003]
[1773152112826,2.64747063,85.269,85.24,11.32523003]
[1773152113011,2.64747063,85.269,85.231,2.77765333]
[1773152114324,11.72772904,85.268,85.204,2.77765333]
[1773152114500,11.32523003,85.24,85.207,29.34023746]
[1773152114819,11.32523003,85.24,85.208,2.77765333]
[1773152115125,11.32523003,85.24,85.207,29.34023746]
[1773152115126,14.37517435,85.269,85.231,2.77765333]
[1773152115417,11.72770372,85.269,85.231,2.77765333]
[1773152116002,11.72770372,85.269,85.22,11.32523003]
[1773152116003,11.32523003,85.25,85.22,11.32523003]
[1773152116207,11.32523003,85.25,85.217,2.77765333]
[1773152116208,13.97270066,85.25,85.217,2.77765333]
[1773152116422,11.32523003,85.24,85.206,2.77765333]
[1773152117005,11.32523003,85.24,85.21,11.32523003]
[1773152117204,11.32523003,85.24,85.21,14.10288336]
[1773152117822,2.64747063,85.239,85.201,11.73695144]
[1773152118021,11.32523003,85.23,85.201,14.51460477]
[1773152118218,2.64747063,85.239,85.202,2.77765333]
[1773152118425,11.32523003,85.23,85.203,11.73667593]
[1773152118725,11.32523003,85.22,85.2,0.1]
[1773152118920,11.32523003,85.22,85.2,11.83699317]
[1773152119123,11.32523003,85.23,85.201,2.77765333]
[1773152119420,11.73171904,85.239,85.201,2.77765333]
[1773152119828,11.32523003,85.23,85.201,2.77765333]
[1773152120123,11.73171904,85.239,85.201,2.77765333]
[1773152120421,11.73063697,85.247,85.211,2.77765333]
[1773152120625,11.73034287,85.249,85.221,2.77765333]
[1773152120824,11.73034287,85.249,85.22,11.32523003]
[1773152120825,11.32523003,85.28,85.241,2.77765333]
[1773152121035,58.60908908,85.311,85.25,11.32523003]
[1773152121036,13.97270066,85.29,85.25,11.32523003]
[1773152121349,2.64747063,85.299,85.26,14.10288336]
[1773152121511,2.64747063,85.299,85.26,11.32523003]
[1773152121711,2.64747063,85.279,85.24,11.32523003]
[1773152122128,2.64747063,85.269,85.23,11.32523003]
[1773152122331,2.64747063,85.269,85.212,41.07402712]
[1773152122332,2.64747063,85.259,85.22,11.32523003]
[1773152122528,3.69383402,85.298,85.24,11.32523003]
[1773152122529,11.32523003,85.27,85.24,11.32523003]
[1773152122711,11.7275915,85.269,85.24,11.32523003]
[1773152123109,11.7275915,85.269,85.231,2.77765333]
[1773152124214,11.7275915,85.269,85.24,11.32523003]
[1773152124428,11.32523003,85.29,85.25,11.32523003]
[1773152124637,2.64747063,85.279,85.247,11.73049568]
[1773152124832,2.64747063,85.269,85.234,11.73234397]
[1773152125017,2.64747063,85.269,85.24,11.32523003]
[1773152125329,11.32523003,85.28,85.241,2.77765333]
[1773152125513,11.32523003,85.28,85.25,11.32523003]
[1773152125909,41.03694497,85.289,85.202,2.77765333]
[1773152125910,2.64747063,85.259,85.202,2.77765333]
[1773152126108,2.64747063,85.259,85.201,11.73695144]
[1773152126109,2.64747063,85.239,85.201,41.07933005]
[1773152126315,2.64747063,85.239,85.21,11.32523003]
[1773152126631,11.73034287,85.249,85.21,11.32523003]
[1773152126933,11.73034287,85.249,85.211,2.77765333]
[1773152127543,14.3778135,85.249,85.211,2.77765333]
[1773152127710,11.73034287,85.249,85.211,2.77765333]
[1773152127915,11.32523003,85.26,85.231,2.77765333]
[1773152128127,11.32523003,85.26,85.22,11.32523003]
[1773152128128,11.32523003,85.26,85.221,2.77765333]
[1773152128333,11.32523003,85.27,85.24,11.32523003]
[1773152128730,2.64747063,85.249,85.201,11.73695144]
[1773152129033,41.04657026,85.269,85.201,11.73695144]
[1773152129034,13.97270066,85.24,85.21,11.32523003]
[1773152129914,11.32523003,85.25,85.211,2.77765333]
[1773152130152,11.32523003,85.22,85.2,0.1]
[1773152130350,11.32523003,85.26,85.135,46.98375518]
[1773152130351,2.64747063,85.237,85.164,11.74205063]
[1773152130630,3.69383402,85.257,85.136,46.98339725]
[1773152130631,11.7346994,85.218,85.182,2.77765333]
[1773152130840,11.7346994,85.218,85.144,46.97884798]
[1773152130841,11.32523003,85.2,85.172,11.74094772]
[1773152131007,2.64747063,85.209,85.172,11.74094772]
[1773152131212,11.32523003,85.2,85.172,11.74094772]
[1773152131412,11.32523003,85.2,85.159,32.13431885]
[1773152131413,11.32523003,85.2,85.166,11.74173332]
[1773152131613,11.32523003,85.19,85.166,11.74173332]
[1773152131828,2.64747063,85.189,85.147,2.77765333]
[1773152132015,2.64747063,85.189,85.05,19.65315104]
[1773152132016,2.64747063,85.169,85.082,47.01305527]
[1773152132219,4.82477569,85.212,85.137,2.77765333]
[1773152132437,2.64747063,85.189,85.15,11.32523003]
[1773152132637,2.64747063,85.189,85.137,2.77765333]
[1773152132938,11.32523003,85.17,85.138,11.74563649]
[1773152133232,11.32523003,85.18,85.15,11.32523003]
[1773152133433,2.64747063,85.181,85.142,2.77765333]
[1773152133641,2.61048558,85.189,85.15,11.32523003]
[1773152133930,2.61048558,85.188,85.15,11.32523003]
[1773152134443,11.32523003,85.2,85.167,2.63404194]
[1773152134639,11.32523003,85.2,85.17,11.32523003]
[1773152134816,2.61048558,85.179,85.124,11.74756825]
[1773152135019,88.02920221,85.199,85.124,11.74756825]
[1773152135020,2.61048558,85.159,85.13,11.32523003]
[1773152135221,2.61048558,85.159,85.124,11.74756825]
[1773152135222,11.32523003,85.18,85.141,2.63404194]
[1773152135421,11.32523003,85.18,85.15,11.32523003]
[1773152135636,2.61048558,85.184,85.141,2.63404194]
[1773152135936,13.93571561,85.18,85.15,11.32523003]
[1773152136130,2.61048558,85.195,85.15,13.95927197]
[1773152136339,41.08029436,85.199,85.124,41.11648888]
[1773152136340,2.61048558,85.199,85.161,2.63404194]
[1773152136526,2.61048558,85.199,85.17,11.32523003]
[1773152136916,2.61048558,85.199,85.171,11.74108558]
[1773152137116,14.34775448,85.199,85.17,11.32523003]
[1773152137316,11.32523003,85.19,85.16,23.06775182]
[1773152137546,2.61048558,85.189,85.154,11.74337176]
[1773152137838,2.61048558,85.189,85.106,46.99997316]
[1773152137839,2.61048558,85.169,85.142,11.74506066]
[1773152138013,2.61048558,85.198,85.161,2.63404194]
[1773152138213,46.92207909,85.248,85.142,146.81353449]
[1773152138214,11.32523003,85.26,85.19,11.32523003]
[1773152138417,2.61048558,85.249,85.22,11.32523003]
[1773152138632,2.61048558,85.249,85.142,287.75455065]
[1773152138633,2.61048558,85.239,85.2,11.32523003]
[1773152138822,2.61048558,85.239,85.142,287.75455065]
[1773152138823,11.73259203,85.233,85.195,2.63404194]
[1773152139036,2.61048558,85.219,85.19,11.32523003]
[1773152139217,2.61048558,85.219,85.143,58.72473367]
[1773152139218,2.61048558,85.229,85.2,11.32523003]
[1773152139419,2.61048558,85.243,85.22,11.32523003]
[1773152139648,46.89478848,85.298,85.23,11.32523003]
[1773152139649,2.61048558,85.256,85.23,11.32523003]
[1773152139823,11.32523003,85.26,85.23,11.32523003]
[1773152139824,23.05413794,85.26,85.23,11.32523003]
[1773152140019,23.05413794,85.26,85.219,2.63404194]
[1773152140020,2.61048558,85.249,85.22,11.32523003]
[1773152140221,11.32523003,85.26,85.23,11.32523003]
[1773152140440,2.61048558,85.258,85.215,2.63404194]
[1773152140625,2.61048558,85.249,85.22,11.32523003]
[1773152140831,2.61048558,85.247,85.22,11.32523003]
[1773152141234,2.61048558,85.247,85.21,11.32523003]
[1773152141434,13.93571561,85.24,85.21,11.32523003]
[1773152141633,2.61048558,85.239,85.21,11.32523003]
[1773152141830,2.61048558,85.239,85.211,11.73557404]
[1773152142031,2.61048558,85.239,85.181,46.95862895]
[1773152142032,2.61048558,85.239,85.2,11.32523003]
[1773152142354,2.61048558,85.239,85.201,11.73695144]
[1773152142741,13.93571561,85.22,85.19,11.32523003]
[1773152142929,2.61048558,85.217,85.19,11.32523003]
[1773152143248,11.32523003,85.22,85.19,11.32523003]
[1773152143745,2.61048558,85.229,85.2,11.32523003]
[1773152143941,2.61048558,85.229,85.182,2.63404194]
[1773152143942,11.32523003,85.22,85.19,11.32523003]
[1773152144846,11.73447235,85.219,85.183,11.73943157]
[1773152145039,11.73447235,85.219,85.17,29.35302479]
[1773152145040,11.32523003,85.2,85.17,11.32523003]
[1773152145234,2.61048558,85.189,85.157,11.74301584]
[1773152145436,88.00854267,85.219,85.157,11.74301584]
[1773152145437,2.61048558,85.215,85.18,11.32523003]
[1773152146242,11.73447235,85.219,85.18,11.32523003]
[1773152146243,11.32523003,85.21,85.18,11.32523003]
[1773152146445,2.56757004,85.199,85.16,11.32523003]
[1773152146960,11.32523003,85.2,85.16,11.32523003]
[1773152146961,2.56757004,85.187,85.161,11.74246427]
[1773152147154,11.32523003,85.21,85.17,11.32523003]
[1773152147361,11.32523003,85.21,85.18,11.32523003]
[1773152147857,11.32523003,85.22,85.19,11.32523003]
[1773152148035,2.56757004,85.236,85.2,11.32523003]
[1773152148349,2.56757004,85.229,85.19,13.98307552]
[1773152148545,2.56757004,85.229,85.161,135.03833913]
[1773152148546,2.56757004,85.219,85.167,2.65784549]
[1773152148751,11.32523003,85.22,85.18,11.32523003]
[1773152148752,2.56757004,85.209,85.18,11.32523003]
[1773152149955,11.73598723,85.208,85.181,11.73970721]
[1773152150250,11.32523003,85.22,85.182,2.65784549]
[1773152150442,11.32523003,85.22,85.181,41.08897523]
[1773152150443,11.73211069,85.237,85.201,2.65784549]
[1773152150748,11.32523003,85.23,85.201,2.65784549]
[1773152151139,11.32523003,85.23,85.2,11.32523003]
[1773152151980,11.32523003,85.23,85.201,11.73695144]
[1773152152447,2.56757004,85.229,85.2,11.32523003]
[1773152152750,2.56757004,85.229,85.19,2.65784549]
[1773152153049,2.56757004,85.209,85.18,11.32523003]
[1773152153248,2.56757004,85.209,85.17,11.32523003]
[1773152153442,11.32523003,85.2,85.17,11.32523003]
[1773152154140,23.06244047,85.2,85.171,11.74108558]
[1773152154658,23.06244047,85.2,85.167,11.74161301]
[1773152154659,2.56757004,85.199,85.167,11.74161301]
[1773152154853,11.32523003,85.19,85.167,11.74161301]
[1773152155032,2.56757004,85.199,85.167,11.74161301]
[1773152155230,11.32523003,85.22,85.181,2.65784549]
[1773152155455,11.32523003,85.23,85.2,11.32523003]
[1773152155658,2.56757004,85.229,85.191,2.65784549]
[1773152155852,11.33858785,85.22,85.191,2.65784549]
[1773152156052,11.33858785,85.21,85.178,2.65784549]
[1773152156241,2.56757004,85.189,85.123,11.74770626]
[1773152156553,2.56757004,85.189,85.112,2.65784549]
[1773152156554,11.33858785,85.14,85.11,11.33858785]
[1773152156732,11.33858785,85.2,85.13,11.33858785]
[1773152156733,2.56757004,85.199,85.13,11.33858785]
[1773152156933,11.33858785,85.16,85.13,11.33858785]
[1773152157253,2.56757004,85.159,85.106,2.65784549]
[1773152157549,2.56757004,85.159,85.118,11.74838649]
[1773152157550,11.33858785,85.15,85.118,11.74838649]
[1773152157757,11.33858785,85.15,85.117,11.74847342]
[1773152157967,2.56757004,85.149,85.117,11.74847342]
[1773152158270,2.56757004,85.149,85.11,11.33858785]
[1773152158758,11.74425705,85.148,85.11,11.33858785]
[1773152159053,11.33858785,85.14,85.11,11.33858785]
[1773152159240,11.33858785,85.14,85.116,11.74853639]
[1773152160055,11.33858785,85.14,85.106,2.65784549]
[1773152160237,14.31180314,85.149,85.116,2.56012575]
[1773152160238,2.56757004,85.149,85.116,2.56012575]
[1773152160437,11.33858785,85.15,85.124,2.56012575]
[1773152160660,11.33858785,85.15,85.088,47.0097638]